bitfinex/quotes_SOLUSD_20240603
["timestamp","ask_amount","ask_price","bid_price","bid_amount"]
[1717426166777,6.4815,163.75,163.63,4.5223]
[1717426166778,6.4815,163.75,163.69,2.2603]
[1717426167080,6.4815,163.75,163.7,2.2601]
[1717426167277,6.1446,163.79,163.73,2.2597]
[1717426167452,6.1446,163.79,163.69,9.0413]
[1717426167780,6.1446,163.79,163.75,2.2594]
[1717426168268,15.4711,163.81,163.69,9.0413]
[1717426168471,15.4711,163.81,163.71,4.52]
[1717426168665,2.2593,163.77,163.51,60.2]
[1717426168870,2.2593,163.77,163.66,4.5213]
[1717426169065,2.2593,163.77,163.67,0.17]
[1717426169382,2.2591,163.79,163.72,2.2599]
[1717426169583,2.2591,163.78,163.72,2.2599]
[1717426169756,2.259,163.79,163.72,2.2599]
[1717426169962,2.259,163.79,163.68,4.5209]
[1717426169963,15.4711,163.81,163.67,0.17]
[1717426170264,22.113,163.81,163.76,2.2593]
[1717426170784,22.113,163.81,163.71,4.52]
[1717426171082,22.113,163.81,163.74,2.2596]
[1717426171590,22.113,163.81,163.75,2.2595]
[1717426171964,24.3717,163.81,163.73,2.2596]
[1717426172183,22.113,163.81,163.72,0.17]
[1717426172490,24.3717,163.81,163.74,2.2596]
[1717426172785,22.113,163.81,163.75,2.2594]
[1717426173163,6.5987,163.8,163.76,2.2593]
[1717426173572,6.5987,163.8,163.75,2.2595]
[1717426174158,6.5987,163.8,163.76,2.2593]
[1717426174368,6.5987,163.8,163.77,2.2592]
[1717426174569,6.4105,163.84,163.78,2.2591]
[1717426174875,6.4105,163.84,163.73,20.0]
[1717426174876,6.4105,163.84,163.74,4.5193]
[1717426175076,6.4105,163.84,163.79,2.2589]
[1717426175389,6.4105,163.84,163.8,2.2588]
[1717426175768,6.4105,163.84,163.79,2.2589]
[1717426176467,6.3569,163.83,163.78,2.2591]
[1717426176871,8.8152,163.84,163.75,0.17]
[1717426177076,6.5569,163.84,163.74,4.5193]
[1717426177271,8.8152,163.84,163.77,2.2591]
[1717426177459,8.8152,163.84,163.74,4.5193]
[1717426177460,8.8152,163.84,163.78,2.259]
[1717426177659,6.5569,163.84,163.78,2.259]
[1717426177969,6.5569,163.84,163.79,2.2589]
[1717426179707,6.5569,163.84,163.73,0.34]
[1717426179993,0.2,163.84,163.81,2.2586]
[1717426180662,0.2,163.84,163.8,2.2588]
[1717426181284,6.6786,163.84,163.76,4.5185]
[1717426181463,6.6786,163.84,163.77,0.34]
[1717426181664,6.6786,163.84,163.8,2.2587]
[1717426181888,0.2,163.84,163.77,0.34]
[1717426182265,0.2,163.84,163.83,2.2584]
[1717426182890,0.2,163.84,163.82,2.2585]
[1717426183263,0.2,163.84,163.83,2.2584]
[1717426183678,0.2,163.84,163.77,4.5182]
[1717426183891,0.2,163.84,163.82,2.2585]
[1717426184468,0.2,163.84,163.83,2.2584]
[1717426192494,0.2,163.84,163.83,6.7752]
[1717426193272,0.2,163.84,163.83,13.8905]
[1717426193489,0.2,163.84,163.83,33.8905]
[1717426195494,0.2,163.84,163.83,27.1152]
[1717426197605,0.2,163.84,163.83,33.8905]
[1717426197902,0.2,163.84,163.83,42.9242]
[1717426199274,21.4236,163.93,163.85,4.5163]
[1717426199603,6.1186,163.91,163.89,2.2575]
[1717426199894,6.1186,163.91,163.85,4.5163]
[1717426200071,6.1186,163.91,163.89,2.2575]
[1717426200495,6.1186,163.91,163.88,2.2577]
[1717426201400,6.1186,163.91,163.89,2.2575]
[1717426202291,6.4791,163.94,163.85,9.0325]
[1717426202598,6.4791,163.94,163.91,2.2572]
[1717426202802,6.424,163.94,163.91,2.2572]
[1717426203202,0.2,163.94,163.87,9.0315]
[1717426203406,0.2,163.94,163.93,2.257]
[1717426203598,6.7387,163.94,163.91,2.2572]
[1717426203801,6.7387,163.94,163.88,4.5154]
[1717426203992,6.7387,163.94,163.91,2.2572]
[1717426204306,6.7387,163.94,163.9,2.2574]
[1717426204493,6.5702,163.93,163.9,2.2574]
[1717426204685,6.5702,163.93,163.91,2.2573]
[1717426205080,6.4709,163.93,163.9,2.2574]
[1717426205300,6.4709,163.92,163.9,2.2574]
[1717426206217,6.4709,163.92,163.86,11.6298]
[1717426206218,6.4709,163.92,163.91,2.2573]
[1717426206595,6.6878,163.94,163.91,2.2573]
[1717426207219,0.2,163.94,163.91,2.2573]
[1717426207716,0.2,163.94,163.92,2.2571]
[1717426207911,0.2,163.94,163.88,4.5154]
[1717426208115,0.2,163.94,163.89,4.8552]
[1717426208417,0.2,163.94,163.93,2.257]
[1717426209180,0.2,163.94,163.9,2.2573]
[1717426209379,0.2,163.94,163.87,4.5157]
[1717426209584,0.2,163.94,163.93,2.257]
[1717426212286,0.2,163.94,163.93,2.427]
[1717426212488,0.2,163.94,163.93,7.1111]
[1717426212909,0.2,163.94,163.93,13.8822]
[1717426213328,0.2,163.94,163.93,22.9104]
[1717426213492,0.2,163.94,163.93,16.1393]
[1717426213814,0.2,163.94,163.93,2.257]
[1717426215818,0.2,163.94,163.93,22.5704]
[1717426216007,0.2,163.94,163.93,6.7711]
[1717426216314,0.2,163.94,163.93,2.257]
[1717426218893,0.2,163.94,163.93,2.597]
[1717426219093,0.2,163.94,163.93,2.257]
[1717426221590,0.2,163.94,163.9,2.2574]
[1717426221825,6.5399,163.93,163.87,4.5157]
[1717426222005,0.2,163.94,163.88,0.17]
[1717426222201,0.2,163.94,163.89,4.5152]
[1717426222414,6.7399,163.94,163.91,2.2572]
[1717426222798,6.5399,163.93,163.91,2.2572]
[1717426223001,0.2,163.94,163.88,0.17]
[1717426223209,0.2,163.94,163.93,2.257]
[1717426223728,0.2,163.94,163.92,2.2571]
[1717426224104,6.7399,163.94,163.92,2.2571]
[1717426224594,6.7399,163.94,163.93,2.257]
[1717426224995,6.7399,163.94,163.89,4.5151]
[1717426225291,0.2,163.94,163.92,2.257]
[1717426225520,0.2,163.94,163.92,2.2571]
[1717426225901,0.2,163.94,163.88,0.34]
[1717426226198,0.2,163.94,163.91,2.2572]
[1717426226610,0.2,163.94,163.89,4.5151]
[1717426226807,0.2,163.94,163.93,2.257]
[1717426229219,0.2,163.94,163.93,6.9411]
[1717426229421,0.2,163.94,163.93,7.1111]
[1717426229619,0.2,163.94,163.93,2.597]
[1717426229918,0.2,163.94,163.93,2.257]
[1717426231217,7.35,163.94,163.93,2.257]
[1717426231824,0.2,163.94,163.93,2.257]
[1717426241528,6.3123,163.93,163.87,9.0315]
[1717426242033,6.3123,163.93,163.91,2.2572]
[1717426242399,0.2,163.94,163.87,9.0315]
[1717426242602,0.2,163.94,163.89,4.5151]
[1717426243008,0.2,163.94,163.93,2.257]
[1717426247823,0.2,163.94,163.93,2.597]
[1717426248142,0.2,163.94,163.93,22.9104]
[1717426248731,0.2,163.94,163.93,7.1111]
[1717426248911,0.2,163.94,163.93,2.257]
[1717426249122,0.2,163.94,163.93,2.597]
[1717426249309,0.2,163.94,163.93,7.1111]
[1717426250832,0.2,163.94,163.93,13.8822]
[1717426251233,0.2,163.94,163.93,22.9104]
[1717426251534,15.0313,164.01,163.94,4.5136]
[1717426251910,7.15,164.0,163.98,2.2563]
[1717426252113,8.8222,164.03,163.99,2.2562]
[1717426252114,6.5665,164.03,163.99,2.2562]
[1717426252318,7.15,164.0,163.99,2.2562]
[1717426252531,22.7254826,164.04,164.0,2.256]
[1717426252735,6.2345,164.03,164.0,2.256]
[1717426252908,7.15,164.01,164.0,2.256]
[1717426253112,7.15,164.02,164.0,2.256]
[1717426253332,6.2345,164.03,164.0,2.256]
[1717426253639,7.15,164.02,164.0,2.256]
[1717426253817,7.15,164.01,164.0,2.256]
[1717426254335,6.2345,164.03,164.0,2.256]
[1717426254526,7.15,164.01,164.0,2.256]
[1717426255038,6.2345,164.03,164.0,2.256]
[1717426255218,1.0208826,164.04,164.01,2.2559]
[1717426255421,7.15,164.02,164.01,2.2559]
[1717426255642,1.0208826,164.04,164.01,2.2559]
[1717426255816,7.15,164.02,164.01,2.2559]
[1717426256633,7.15,164.02,163.97,4.5129]
[1717426256843,7.15,164.02,163.98,0.34]
[1717426257343,7.15,163.99,163.97,2.2563]
[1717426257518,7.15,163.98,163.96,2.2566]
[1717426257844,6.1361,164.01,163.93,6.7711]
[1717426258041,13.2861,164.01,163.96,4.5132]
[1717426258733,6.1361,164.0,163.98,2.2562]
[1717426258935,1.0208826,164.04,163.96,4.5132]
[1717426259236,7.15,164.01,164.0,2.256]
[1717426259443,7.15,164.01,163.99,2.2561]
[1717426259617,7.15,164.0,163.99,2.2561]
[1717426260634,7.15,164.0,163.98,2.2563]
[1717426260942,6.2423,163.98,163.96,2.2566]
[1717426261251,6.2423,163.98,163.93,4.5138]
[1717426261252,6.2423,163.98,163.91,9.0292]
[1717426261537,13.1549,163.96,163.94,2.2567]
[1717426261735,13.1549,163.96,163.91,9.0292]
[1717426261947,13.1549,163.96,163.95,2.2567]
[1717426262239,13.1549,163.96,163.94,2.2568]
[1717426262538,13.1549,163.96,163.92,2.257]
[1717426262539,6.6534,163.94,163.92,2.257]
[1717426262849,6.6534,163.98,163.97,2.2565]
[1717426263019,13.8034,163.98,163.96,2.2565]
[1717426263223,7.15,163.97,163.95,2.2567]
[1717426263436,13.8034,163.96,163.95,2.2567]
[1717426263749,6.6534,163.94,163.91,2.2573]
[1717426263924,7.15,163.93,163.91,2.2573]
[1717426264119,7.15,163.93,163.92,2.2571]
[1717426264426,13.8034,163.94,163.88,11.6653]
[1717426264748,13.8034,163.94,163.93,2.257]
[1717426264919,6.6534,163.94,163.93,2.257]
[1717426265115,13.8034,163.94,163.93,2.257]
[1717426265322,6.6534,163.93,163.92,2.2571]
[1717426265521,13.8034,163.93,163.91,2.2572]
[1717426266421,13.8034,163.93,163.92,2.2571]
[1717426266925,13.8034,163.93,163.91,2.2573]
[1717426267525,6.076,163.92,163.91,2.2573]
[1717426268156,13.226,163.92,163.9,2.2574]
[1717426269334,13.2762,163.91,163.9,2.2574]
[1717426271045,6.4387,163.95,163.93,2.257]
[1717426271366,7.15,163.94,163.93,2.257]
[1717426271573,6.4387,164.01,163.92,7.15]
[1717426271734,7.15,163.96,163.94,2.2568]
[1717426272060,13.5887,163.96,163.94,2.2568]
[1717426272864,6.4387,163.96,163.94,2.2568]
[1717426273067,6.4387,163.96,163.95,2.2567]
[1717426273666,6.4387,163.96,163.88,11.2885]
[1717426273872,6.0924,163.95,163.93,2.2569]
[1717426274374,6.0924,163.95,163.94,2.2569]
[1717426274543,6.0924,163.94,163.92,2.2571]
[1717426274871,13.2424,163.93,163.91,2.2572]
[1717426275185,7.15,163.92,163.91,2.2572]
[1717426275345,7.15,163.92,163.9,2.2574]
[1717426275546,7.15,163.91,163.9,2.2574]
[1717426278480,13.5444,163.92,163.9,2.2574]
[1717426278781,13.5266,163.91,163.89,2.2575]
[1717426278996,7.15,163.9,163.89,2.2575]
[1717426279280,7.15,163.92,163.87,4.5157]
[1717426279481,6.0022,163.93,163.91,2.2573]
[1717426279687,7.15,163.92,163.91,2.2573]
[1717426280161,6.0022,163.93,163.88,7.15]
[1717426280365,97.6247,164.0,163.92,2.2571]
[1717426280366,7.15,163.94,163.92,2.2571]
[1717426280865,7.15,163.94,163.93,2.257]
[1717426281065,2.2563,163.98,163.93,2.257]
[1717426281259,6.5102,163.96,163.94,2.2568]
[1717426281458,13.6602,163.96,163.94,2.2568]
[1717426281658,2.256,164.01,163.96,2.2565]
[1717426281872,7.15,163.98,163.95,2.2567]
[1717426282280,13.2171,163.98,163.95,2.2567]
[1717426282488,13.2171,163.98,163.96,2.2566]
[1717426282676,6.203,164.0,163.97,2.2564]
[1717426282879,7.15,163.98,163.97,2.2564]
[1717426283188,7.15,163.98,163.96,2.2566]
[1717426283553,6.0992,164.0,163.97,2.2564]
[1717426283759,7.15,163.99,163.93,7.15]
[1717426283987,7.15,163.98,163.93,7.15]
[1717426284182,7.15,163.98,163.92,0.17]
[1717426284467,7.15,163.98,163.96,2.2565]
[1717426285294,13.443,163.98,163.96,2.2565]
[1717426285794,13.3616,163.97,163.9,4.6847]
[1717426285999,7.15,163.96,163.9,11.6647]
[1717426286199,7.15,163.96,163.93,2.2569]
[1717426286372,7.15,163.96,163.94,2.2567]
[1717426286701,6.2116,163.97,163.94,2.2567]
[1717426287762,6.2116,163.97,163.95,2.2567]
[1717426288085,15.9341,163.98,163.94,2.2568]
[1717426288276,15.9341,163.98,163.92,2.257]
[1717426288277,8.5387,163.98,163.92,2.257]
[1717426288487,7.15,163.94,163.92,2.257]
[1717426288669,7.15,163.93,163.92,2.257]
[1717426289077,6.2824,163.94,163.91,2.2573]
[1717426289276,7.15,163.93,163.91,2.2573]
[1717426289868,6.2824,163.94,163.87,4.5155]
[1717426289869,7.15,163.92,163.87,4.5155]
[1717426290065,7.15,163.91,163.85,4.5162]
[1717426290282,7.15,163.91,163.85,11.6662]
[1717426290685,7.15,163.91,163.9,2.2574]
[1717426291078,7.15,163.92,163.9,2.2574]
[1717426291383,6.2956,163.97,163.88,4.5153]
[1717426291571,7.15,163.94,163.92,2.257]
[1717426291892,7.15,163.94,163.92,2.2571]
[1717426292389,7.15,163.95,163.93,2.2569]
[1717426292767,7.15,163.95,163.89,7.15]
[1717426292768,7.15,163.95,163.92,2.2571]
[1717426292973,6.3204,163.95,163.92,2.2571]
[1717426293385,7.15,163.94,163.92,2.2571]
[1717426293581,2.2565,163.97,163.92,2.2571]
[1717426293870,7.15,163.94,163.92,2.2571]
[1717426295692,7.15,163.93,163.91,2.2572]
[1717426296198,7.15,163.92,163.86,7.15]
[1717426296395,7.15,163.92,163.87,0.17]
[1717426296582,15.9945,163.97,163.91,2.2572]
[1717426296784,7.15,163.94,163.91,2.2572]
[1717426297093,7.15,163.93,163.88,4.5154]
[1717426297472,7.15,163.93,163.9,2.2574]
[1717426297672,7.15,163.93,163.91,2.2573]
[1717426297878,7.15,163.93,163.87,11.8355]
[1717426298073,7.15,163.92,163.9,2.2573]
[1717426298477,15.9945,163.97,163.92,2.2571]
[1717426298675,7.15,163.93,163.87,4.6857]
[1717426298883,7.15,163.91,163.87,4.6857]
[1717426299091,7.15,163.91,163.89,2.2575]
[1717426299598,7.15,163.91,163.88,2.2576]
[1717426299814,2.2571,163.93,163.88,2.2576]
[1717426299815,7.15,163.9,163.88,2.2576]
[1717426300301,7.15,163.9,163.89,2.2576]
[1717426301219,7.15,163.91,163.89,2.2576]
[1717426301395,7.15,163.91,163.88,2.2577]
[1717426301732,29.5439,163.89,163.79,9.0354]
[1717426301883,6.6444,163.89,163.79,9.0354]
[1717426302204,13.7944,163.85,163.8,4.5175]
[1717426302439,6.6444,163.9,163.75,9.16304134]
[1717426302592,22.0197,163.91,163.85,2.258]
[1717426302794,2.2577,163.88,163.81,2.4585]
[1717426302982,7.15,163.84,163.82,2.79472638]
[1717426303180,7.15,163.84,163.81,0.2]
[1717426303394,7.15,163.84,163.82,2.79481753]
[1717426303594,7.15,163.84,163.81,0.2]
[1717426303797,13.7333,163.85,163.83,2.2584]
[1717426303989,6.5833,163.85,163.84,2.2583]
[1717426304183,6.2603,163.87,163.84,2.2583]
[1717426304602,6.2603,163.86,163.83,2.2584]
[1717426304786,6.2603,163.86,163.81,0.2]
[1717426304986,6.2603,163.86,163.83,2.2583]
[1717426305296,6.2603,163.85,163.83,2.2583]
[1717426305696,6.2603,163.85,163.82,2.2585]
[1717426306305,6.2603,163.85,163.83,2.2584]
[1717426306880,6.2603,163.85,163.81,2.4585]
[1717426307411,6.2603,163.85,163.82,2.2585]
[1717426307910,6.2603,163.85,163.83,2.2584]
[1717426309787,6.1181,163.87,163.83,2.2584]
[1717426311012,21.9066,163.89,163.82,2.2585]
[1717426311209,2.2577,163.88,163.83,2.2584]
[1717426311394,6.3986,163.87,163.83,2.2584]
[1717426311590,6.3986,163.84,163.81,0.2]
[1717426312120,6.3986,163.84,163.81,2.4586]
[1717426312293,22.8212,163.85,163.81,0.2]
[1717426312491,16.5256,163.85,163.81,0.2]
[1717426312717,6.2956,163.84,163.81,0.2]
[1717426313586,18.7837,163.85,163.81,0.2]
[1717426314123,6.0437,163.83,163.81,0.2]
[1717426315113,6.6218,163.83,163.81,0.2]
[1717426315291,6.6218,163.82,163.81,0.2]
[1717426316893,25.2209,163.82,163.81,0.2]
[1717426317102,25.3909,163.82,163.81,0.2]
[1717426317825,85.3909,163.82,163.81,0.2]
[1717426317999,85.5609,163.82,163.81,0.2]
[1717426318401,107.0509,163.82,163.81,0.2]
[1717426318607,114.25009084,163.82,163.81,0.2]
[1717426318811,2.259,163.79,163.73,2.2597]
[1717426319112,6.166,163.78,163.7,4.5204]
[1717426319419,6.166,163.78,163.74,2.2595]
[1717426320307,2.259,163.79,163.73,2.2597]
[1717426320618,6.2418,163.77,163.73,2.2597]
[1717426321320,6.6424,163.77,163.68,9.0418]
[1717426321489,24.1771,163.78,163.72,2.2599]
[1717426321694,84.1771,163.78,163.72,2.2599]
[1717426321893,84.1771,163.78,163.73,2.2598]
[1717426321894,24.1771,163.78,163.73,2.2598]
[1717426322195,6.3551,163.77,163.73,2.2598]
[1717426322419,6.1988,163.77,163.73,2.2598]
[1717426322624,15.2756,163.78,163.73,2.2598]
[1717426322830,6.4352,163.77,163.73,2.2598]
[1717426322998,6.6151,163.77,163.73,2.2598]
[1717426323199,15.6855,163.77,163.68,13.5628]
[1717426323400,15.6855,163.77,163.71,2.2599]
[1717426323627,15.6855,163.77,163.69,2.2603]
[1717426323843,0.34,163.76,163.63,6.7832]
[1717426324121,2.2598,163.73,163.67,2.2606]
[1717426324699,2.2597,163.74,163.67,2.2606]
[1717426324908,2.4297,163.74,163.67,2.2606]
[1717426325107,21.49,163.73,163.66,2.2607]
[1717426325349,2.2599,163.72,163.66,2.2607]
[1717426325504,0.17,163.71,163.66,2.2607]
[1717426325844,7.18,163.68,163.66,2.2607]
[1717426326304,7.18,163.67,163.63,2.2611]
[1717426326504,7.18,163.64,163.6,2.2615]
[1717426327123,7.18,163.64,163.61,2.2614]
[1717426327323,7.18,163.63,163.6,2.2616]
[1717426327720,6.4809,163.64,163.61,2.2613]
[1717426328032,6.4271,163.68,163.66,2.2607]
[1717426328237,7.18,163.69,163.66,2.2607]
[1717426328443,6.4271,163.7,163.66,2.2607]
[1717426328609,7.18,163.69,163.66,2.2607]
[1717426329033,7.18,163.69,163.65,2.2608]
[1717426329421,7.18,163.68,163.64,2.261]
[1717426329633,8.6874,163.7,163.58,4.56152037]
[1717426329634,60.0,163.69,163.58,4.56152037]
[1717426329946,7.18,163.64,163.59,2.2616]
[1717426330156,7.18,163.64,163.59,2.2617]
[1717426330321,13.2945,163.63,163.59,2.2617]
[1717426330517,13.2945,163.63,163.58,0.03802037]
[1717426330518,6.1145,163.63,163.58,0.03802037]
[1717426330715,7.18,163.6,163.58,0.03802037]
[1717426331407,2.261,163.64,163.58,2.29982037]
[1717426331720,8.2751,163.65,163.59,2.2617]
[1717426332033,7.18,163.63,163.6,2.2615]
[1717426332238,7.18,163.63,163.58,7.21802037]
[1717426332445,6.4944,163.66,163.61,2.2614]
[1717426332759,6.4944,163.66,163.58,7.21802037]
[1717426332760,7.18,163.62,163.58,2.29972037]
[1717426332911,8.9026,163.64,163.58,2.29972037]
[1717426333105,7.18,163.62,163.58,2.29972037]
[1717426333548,7.18,163.62,163.59,2.2617]
[1717426334039,7.18,163.62,163.58,2.29982037]
[1717426334346,8.9026,163.64,163.58,2.29982037]
[1717426334530,7.18,163.62,163.58,2.29982037]
[1717426335031,7.18,163.61,163.58,2.29982037]
[1717426335426,2.2613,163.62,163.58,0.03802037]
[1717426335607,7.18,163.6,163.58,0.03802037]
[1717426336012,7.18,163.61,163.58,0.03802037]
[1717426337349,7.18,163.6,163.58,0.03802037]
[1717426337722,7.18,163.61,163.58,0.03802037]
[1717426339439,7.18,163.6,163.58,0.03802037]
[1717426340731,7.18,163.6,163.58,2.29982037]
[1717426342044,7.18,163.61,163.58,2.29982037]
[1717426342214,6.0052,163.63,163.58,2.29982037]
[1717426342419,8.8228,163.67,163.61,2.2614]
[1717426342632,6.5622,163.67,163.58,0.03802037]
[1717426342851,7.18,163.68,163.63,7.18]
[1717426343015,7.18,163.69,163.66,2.2607]
[1717426343337,6.252,163.71,163.67,2.2606]
[1717426343537,13.432,163.71,163.67,2.2606]
[1717426343720,6.252,163.71,163.66,2.2607]
[1717426343918,7.18,163.7,163.66,2.2607]
[1717426344127,2.2598,163.74,163.67,2.2606]
[1717426344348,7.18,163.72,163.67,2.2606]
[1717426344739,7.18,163.71,163.66,2.2607]
[1717426344941,7.18,163.7,163.64,7.18]
[1717426345235,9.4403,163.69,163.59,9.2977]
[1717426345435,7.18,163.68,163.62,9.4412]
[1717426345634,7.18,163.68,163.63,2.2611]
[1717426345945,2.2603,163.69,163.63,2.2611]
[1717426346254,2.2603,163.69,163.64,2.261]
[1717426346435,2.2602,163.7,163.64,2.261]
[1717426346948,2.2602,163.7,163.65,2.2609]
[1717426347150,6.4664,163.7,163.66,2.2607]
[1717426347354,2.2598,163.73,163.67,2.2606]
[1717426347541,6.4509,163.74,163.64,20.349]
[1717426347947,6.4509,163.74,163.68,2.2604]
[1717426348141,6.4509,163.74,163.65,4.5217]
[1717426348335,6.4509,163.74,163.66,4.5215]
[1717426348727,6.4509,163.74,163.64,9.0441]
[1717426349129,8.7106,163.74,163.68,2.2604]
[1717426349441,6.4509,163.74,163.69,2.2603]
[1717426350343,2.2596,163.74,163.68,2.2604]
[1717426350654,2.2596,163.74,163.64,9.0441]
[1717426350655,2.2598,163.73,163.67,2.2606]
[1717426351429,68.6776,163.75,163.64,4.522]
[1717426351738,6.5424,163.73,163.69,2.2603]
[1717426352258,6.5424,163.73,163.7,2.2601]
[1717426352947,6.5424,163.73,163.69,2.2603]
[1717426353535,6.5424,163.73,163.68,2.2604]
[1717426353756,6.5424,163.73,163.69,2.2603]
[1717426354544,18.1828,163.73,163.66,2.2606]
[1717426354739,0.17,163.72,163.64,2.2609]
[1717426354950,60.0,163.71,163.64,2.2609]
[1717426355146,60.0,163.71,163.65,2.2608]
[1717426355350,2.26,163.71,163.65,2.2608]
[1717426356056,2.5999,163.72,163.66,2.2607]
[1717426356237,2.4299,163.72,163.66,2.2607]
[1717426357859,2.2601,163.71,163.65,2.2608]
[1717426358555,15.9229,163.73,163.63,4.5223]
[1717426358730,6.0701,163.74,163.65,11.3043]
[1717426358936,6.0701,163.74,163.68,2.2603]
[1717426359149,6.0701,163.74,163.67,2.2606]
[1717426359343,2.2598,163.73,163.67,2.2606]
[1717426359563,66.0701,163.74,163.66,2.2607]
[1717426359875,66.0701,163.74,163.65,2.2608]
[1717426360080,6.5437,163.73,163.62,4.5224]
[1717426360290,6.3737,163.73,163.63,4.5223]
[1717426360465,6.3737,163.73,163.68,2.2604]
[1717426360658,6.3737,163.73,163.65,4.5217]
[1717426360981,2.2595,163.76,163.69,2.2603]
[1717426361347,2.2595,163.76,163.66,4.5215]
[1717426361348,2.2595,163.76,163.7,2.2602]
[1717426361781,21.5473,163.77,163.71,2.26]
[1717426361782,17.4328,163.77,163.71,2.26]
[1717426361948,75.1736,163.77,163.66,4.5215]
[1717426362148,2.2596,163.75,163.69,2.2603]
[1717426362348,2.2594,163.76,163.71,2.26]
[1717426362558,2.2594,163.76,163.7,2.2602]
[1717426363069,2.2595,163.75,163.69,2.2603]
[1717426363271,2.2594,163.76,163.7,2.2602]
[1717426363585,6.056,163.77,163.67,4.5212]
[1717426363788,6.056,163.77,163.72,2.2599]
[1717426363951,6.056,163.77,163.68,4.521]
[1717426364154,8.3153,163.77,163.71,2.26]
[1717426364852,2.2594,163.76,163.7,2.2601]
[1717426365282,2.2592,163.77,163.71,2.26]
[1717426365452,2.2592,163.77,163.72,2.2599]
[1717426365653,8.8284,163.77,163.71,2.26]
[1717426366266,6.5692,163.77,163.72,2.2599]
[1717426366679,8.8284,163.77,163.72,2.2599]
[1717426366866,8.8284,163.77,163.71,2.26]
[1717426367683,8.8284,163.77,163.7,2.2601]
[1717426367684,2.2594,163.76,163.7,2.2601]
[1717426368051,7.17,163.73,163.7,2.2601]
[1717426368255,7.17,163.74,163.72,2.2599]
[1717426368695,7.17,163.75,163.73,2.2598]
[1717426368971,2.259,163.79,163.73,2.2598]
[1717426369179,7.17,163.76,163.73,2.2598]
[1717426369361,0.17,163.8,163.74,2.2596]
[1717426369566,7.17,163.77,163.74,2.2596]
[1717426370181,7.17,163.78,163.74,2.2596]
[1717426370477,7.17,163.78,163.69,20.3427]
[1717426370478,7.17,163.77,163.73,2.2597]
[1717426371762,7.17,163.76,163.73,2.2597]
[1717426371959,7.17,163.75,163.73,2.2597]
[1717426372170,7.17,163.76,163.73,2.2597]
[1717426372363,6.4733,163.79,163.72,7.17]
[1717426372688,6.4733,163.79,163.71,4.5201]
[1717426372689,7.17,163.79,163.76,2.2594]
[1717426373563,8.6953,163.81,163.76,2.2594]
[1717426373882,7.17,163.8,163.76,2.2594]
[1717426375067,7.17,163.8,163.75,2.2594]
[1717426375294,13.3145,163.8,163.75,2.2594]
[1717426375469,7.17,163.79,163.75,2.2594]
[1717426375793,7.17,163.79,163.76,2.2593]
[1717426376967,7.17,163.79,163.77,2.2592]
[1717426377366,6.1445,163.8,163.77,2.2592]